Cogmind - Beta 17 @@@ ROGUE MODE // 2026.08.03 @ 12:03:56 Player: Blank Result: Destroyed by S-27 Virus with Autogun Performance ------------- Evolutions (3) 1500 Regions Visited (9) 1800 Robots Destroyed (66) 330 Value Destroyed (2133) 2133 Prototype IDs (28) 560 Alien Tech Used (0) 0 Bonus (447) 447 TOTAL SCORE: 6770 Bonus ------- Follower Combat Kills 147 Aligned with FarCom 300 Cogmind --------- Core Integrity 0/700 Matter 300/300 Energy 100/100 System Corruption 25% Temperature Cool (0) Movement Core (50) Location -7/Storage Parts ------- > --- POWER (1) -------- (None) > --- PROPULSION (4) --- (None) > --- UTILITY (5) ------ (None) > --- WEAPON (3) ------- (None) > --- INVENTORY (5) ---- Deuterium Engine Light Nuclear Core Advanced Visual Processing Unit Gauss Rifle Advanced Assault Cannon Peak State ------------ > --- POWER ------------ Enhanced Nuclear Core > --- PROPULSION ------- Carbon-fiber Leg Carbon-fiber Leg Titanium Leg Improved Carbon-fiber Leg > --- UTILITY ---------- Medium Storage Unit Improved Sensor Array Improved Signal Interpreter 0b10 Alert Chip Melee Analysis Suite > --- WEAPON ----------- Enhanced Autogun Enhanced Autogun Powered Hammer > --- INVENTORY -------- Deuterium Engine Light Nuclear Core Light Treads Medium Matter Pod Advanced Visual Processing Unit Advanced Targeting Computer Transmission Jammer Enhanced Autogun Gauss Rifle Advanced Assault Cannon [Rating: 49] Favorites ----------- Power Light Nuclear Core Engine Improved Ion Engine Power Core Light Nuclear Core Propulsion Aluminum Leg Treads Light Treads Leg Aluminum Leg Wheel Wheel Hover Unit Improved Airjet Utility 0b10 Alert Chip Device Seismic Detector Storage Medium Storage Unit Processor 0b10 Alert Chip Weapon Enhanced Autogun Energy Gun Medium Laser Ballistic Gun Enhanced Autogun Ballistic Cannon Mini Assault Cannon Special Weapon Mining Laser Impact Weapon Powered Hammer Slashing Weapon Katana Build | -11 -10 -10 -9 -9 -9 -8 -8 -7 -7 ------- Run | Yrd Mat Min Mat Min Exi Min Mat Fac Sto Slots Evolved 6 | . . . 2 . . . 2 2 . Power . | . . . . . . . . . . Propulsion 2 | . . . 1 . . . 1 . . Utility 3 | . . . 1 . . . . 2 . Weapon 1 | . . . . . . . 1 . . Parts Attached 57 | 7 1 3 8 2 1 4 18 4 9 Power 7 | 1 . 1 . . . 1 2 1 1 Engine 2 | 1 . 1 . . . . . . . Core 5 | . . . . . . 1 2 1 1 Reactor . | . . . . . . . . . . Propulsion 24 | 2 1 1 4 2 . 2 6 1 5 Treads 1 | . . . . . . . . . 1 Leg 20 | 2 1 1 3 2 . 2 6 1 2 Wheel 2 | . . . 1 . . . . . 1 Hover 1 | . . . . . . . . . 1 Flight . | . . . . . . . . . . Utility 10 | 2 . . 2 . 1 . 2 2 1 Device 3 | 1 . . 1 . . . . 1 . Storage 3 | 1 . . . . . . 1 . 1 Processor 4 | . . . 1 . 1 . 1 1 . Hackware . | . . . . . . . . . . Protection . | . . . . . . . . . . Artifact . | . . . . . . . . . . Weapon 16 | 2 . 1 2 . . 1 8 . 2 Energy Gun 1 | 1 . . . . . . . . . Energy Cannon . | . . . . . . . . . . Ballistic Gun 11 | 1 . 1 1 . . . 7 . 1 Ballistic Cannon 1 | . . . . . . . . . 1 Launcher . | . . . . . . . . . . Special Weapon 1 | . . . 1 . . . . . . Impact Weapon 1 | . . . . . . . 1 . . Slashing Weapon 1 | . . . . . . 1 . . . Piercing Weapon . | . . . . . . . . . . Special Melee Weapon . | . . . . . . . . . . Unidentified Prototypes 5 | . . . . . . . 2 . 3 Parts Lost 30 | . . . . 1 . 4 4 2 19 Power 4 | . . . . . . 1 1 1 1 Propulsion 15 | . . . . . . 2 3 1 9 Utility 6 | . . . . 1 . . . . 5 Weapon 5 | . . . . . . 1 . . 4 Highest Loss Streak 15 | . . . . 1 . 4 2 1 15 To Critical Strikes . | . . . . . . . . . . Average Backups 8 | 3 7 7 7 8 8 7 9 9 8 Power . | . 1 1 1 1 1 1 . . 1 Propulsion 1 | 2 4 2 2 2 2 1 1 . . Utility 2 | . . 1 2 2 2 3 3 3 3 Weapon 3 | . 1 1 2 2 2 2 4 5 2 Tool/Special . | . . . . . . . . . . Unused Backups 16 | . . 3 . 1 1 . 4 1 6 Power 2 | . . . . . . . 1 . 1 Propulsion 4 | . . 3 . . . . 1 . . Utility 5 | . . . . . . . 2 . 3 Weapon 5 | . . . . 1 1 . . 1 2 Tool/Special . | . . . . . . . . . . Average Slot Usage (%) 97 | . 100 100 93 94 96 99 99 99 74 Engine 4 | . 14 14 11 11 11 1 . . . Core 5 | . . . . . . 9 8 6 5 Leg 32 | . 28 28 28 33 33 33 35 30 20 Device 4 | . 14 14 14 5 . . . 7 4 Storage 9 | . 14 14 11 11 11 11 9 7 5 Processor 14 | . . . 5 11 19 22 18 22 16 Energy Gun 2 | . 14 14 . . . . . . . Ballistic Gun 16 | . 14 14 20 17 11 11 19 15 10 Special Weapon 1 | . . . . 4 11 . . . . Impact Weapon 3 | . . . . . . . 5 7 5 Slashing Weapon 1 | . . . . . . 9 2 . . Peak Build Rating 49 | 7 7 8 11 11 16 19 37 45 49 Average Rating 25 | 5 7 7 10 10 14 18 33 41 34 On Entrance 15 | . 7 7 8 11 10 16 19 35 42 Avg Prop Armor Cover (%) 15 | . . . . . . . . . 15 Naked Turns 19 | . . . . . . . . . 19 Heaviest Build 28 | 12 12 16 18 17 16 16 25 25 28 Greatest Support 65 | 20 20 20 30 30 30 33 62 62 65 Greatest Overweight (x) 4 | 1 . . . . . . . . 4 Average Overweight (x) . | . . . . . . . . . . Largest Inventory Capacity 10 | 8 8 8 8 8 8 8 10 10 10 Average Capacity 9 | 7 8 8 8 8 8 8 9 10 8 Most Carried 10 | 6 8 8 8 8 8 8 10 10 10 Average Carried 8 | 4 7 7 7 7 7 7 9 9 8 Final Capacity 10 | 8 8 8 8 8 8 8 10 10 5 Final Carried 10 | 6 8 8 8 8 8 8 10 9 5 Class Distribution -------------------- 46% | Mutant 34% | Scavenger-Mutant 13% | Assassin 5% | Scavenger-Skirmisher Dominant Class ---------------- Mutant | -10/Materials Mutant | -10/Mines Scavenger-Mutant | -9/Materials Scavenger-Mutant | -9/Mines Scavenger-Mutant | -9/Exiles Scavenger-Mutant | -8/Mines Mutant | -8/Materials Assassin | -7/Factory Assassin | -7/Storage Resources | -11 -10 -10 -9 -9 -9 -8 -8 -7 -7 ----------- Run | Yrd Mat Min Mat Min Exi Min Mat Fac Sto Matter Collected 1272 | 143 94 101 165 45 56 101 425 60 82 Remotely . | . . . . . . . . . . Salvage Created 2544 | 14 182 111 53 137 . 101 1461 321 164 Parts 129 | 4 15 7 4 4 . 7 65 11 12 Haulers Intercepted 8 | . 1 . . . . . 6 . 1 Recyclers Shooed 1 | . . . . . . . . 1 . Parts Field Recycled . | . . . . . . . . . . Retrieved Matter . | . . . . . . . . . . Parts Self-Destructed . | . . . . . . . . . . Prevented . | . . . . . . . . . . Parts Restored . | . . . . . . . . . . Kills | -11 -10 -10 -9 -9 -9 -8 -8 -7 -7 ------- Run | Yrd Mat Min Mat Min Exi Min Mat Fac Sto Combat Hostiles Destroyed 50 | . 5 3 1 3 . 2 26 8 2 Melee 25 | . . . . . . . 18 6 1 Guns 16 | . 5 3 1 3 . 2 2 . . Classes Destroyed 13 | 1 3 1 . 1 . 1 4 1 1 Worker 1 | . . . . . . . 1 . . Tunneler 1 | 1 . . . . . . . . . Hauler 8 | . 1 . . . . . 6 . 1 Recycler 3 | . . . . . . . 2 1 . Operator 2 | . . . . . . . . . 2 Watcher 1 | . . . . . . . 1 . . Swarmer 16 | . 2 1 . . . . 7 6 . Grunt 18 | . 3 1 . 2 . 1 11 . . Brawler 1 | . . . . 1 . . . . . Duelist 2 | . . . . . . 1 1 . . Sentry 10 | . . 1 1 . . . 6 1 1 Hunter 2 | . . . . . . . 1 . 1 Programmer 1 | . . . . . . . . 1 . Best Kill Streak 7 | 1 4 2 1 3 . 2 7 3 2 Combat Bots Only 6 | . 4 2 1 3 . 2 6 3 1 Max Kills in Single Turn 1 | 1 1 1 1 1 . 1 1 1 1 Gunslinging . | . . . . . . . . . . Exploded . | . . . . . . . . . . Melee 1 | . . . . . . . 1 1 1 Uniques/NPCs Destroyed . | . . . . . . . . . . Combat | -11 -10 -10 -9 -9 -9 -8 -8 -7 -7 -------- Run | Yrd Mat Min Mat Min Exi Min Mat Fac Sto Hostile Shots Fired 560 | . 26 13 11 17 . 20 183 61 229 Missed 174 | . 8 3 3 5 . 7 53 19 76 Hits 386 | . 18 10 8 12 . 13 130 42 153 Melee 23 | . . . . 3 . 5 3 . 12 Projectile 363 | . 18 10 8 9 . 8 127 42 141 Critical Strikes 10 | . . . 1 . . 1 4 . 4 Damage Taken 5071 | . 187 121 125 172 . 267 1536 484 2179 Core 1075 | . 22 68 . 10 . 30 243 40 662 Absorbed by Shields . | . . . . . . . . . . Core Remaining (%) 77 | 100 . 64 . . . 90 55 . . Volleys Fired 92 | 5 17 7 12 23 . 9 14 . 5 Largest 3 | 2 2 2 2 2 . 2 3 . 1 Hottest 123 | 70 70 70 100 100 . 123 76 . 40 Shots Fired 172 | 10 34 14 22 33 1 15 38 . 5 Gun 152 | 10 34 14 21 20 1 14 38 . . Cannon 5 | . . . . . . . . . 5 Launcher . | . . . . . . . . . . Special 15 | . . . 1 13 . 1 . . . Kinetic 128 | 5 17 7 21 20 1 14 38 . 5 Thermal 44 | 5 17 7 1 13 . 1 . . . Explosive . | . . . . . . . . . . Electromagnetic . | . . . . . . . . . . Robot Hit Streak 7 | 2 7 6 5 5 . 4 7 . 7 Robot Miss Streak 3 | 2 2 1 3 2 . 3 2 . 1 Penetration Max . | . . . . . . . . . . Secondary Targets 2 | . 1 . . . . 1 . . . Max Gunslinging Chain 1 | . 1 . . . . 1 . . . Shots Hit Robots 200 | 5 25 9 14 13 . 9 87 16 22 Core Hits 81 | 2 11 7 2 6 . 6 29 4 14 Critical Kills 3 | . . . . . . . 3 . . Critical Parts Destroyed 13 | . . . . . . . 8 5 . Critical Strikes 21 | . 2 . . . . . 14 5 . Burn 2 | . 2 . . . . . . . . Smash 16 | . . . . . . . 11 5 . Sever 3 | . . . . . . . 3 . . Melee Attacks 133 | . . . . . . . 83 22 28 Impact 107 | . . . . . . . 57 22 28 Slashing 26 | . . . . . . . 26 . . Piercing . | . . . . . . . . . . Sneak Attacks 14 | . . . . . . . 9 1 4 Combat Hostiles 1 | . . . . . . . . . 1 Follow-up Attacks . | . . . . . . . . . . Damage Inflicted 5542 | 58 261 113 186 144 . 98 2951 730 1001 Guns 1280 | 58 261 113 186 144 . 98 420 . . Cannons 118 | . . . . . . . . . 118 Explosions . | . . . . . . . . . . Melee 4116 | . . . . . . . 2531 730 855 Ramming 28 | . . . . . . . . . 28 Kinetic 1137 | 22 110 39 186 144 . 98 420 . 118 Thermal 261 | 36 151 74 . . . . . . . Explosive . | . . . . . . . . . . Electromagnetic . | . . . . . . . . . . Impact 3293 | . . . . . . . 1708 730 855 Slashing 823 | . . . . . . . 823 . . Piercing . | . . . . . . . . . . Highest Corruption 25 | . . . . 2 2 2 . 1 25 Average Corruption 3 | . . . . 2 2 2 . 1 6 Corruption Purged . | . . . . . . . . . . Corruption Blocked . | . . . . . . . . . . Effects 25 | . . . . 2 7 7 . 1 8 Message Errors 7 | . . . . . 1 1 . 1 4 Matter Fused 6 | . . . . . 3 2 . . 1 Heat Flow Errors 4 | . . . . 1 . 3 . . . Data Loss (minor) 1 | . . . . . . 1 . . . Data Loss (major) 3 | . . . . 1 2 . . . . Misfires 1 | . . . . . 1 . . . . Alerts 1 | . . . . . . . . . 1 Misdirections 2 | . . . . . . . . . 2 Overload Shots . | . . . . . . . . . . Overflow Damage 1223 | . . . . . . . 728 337 158 Projectiles . | . . . . . . . . . . Explosions . | . . . . . . . . . . Melee 1223 | . . . . . . . 728 337 158 Knockbacks 12 | . . . . . . . 3 4 5 Impact 10 | . . . . . . . 3 3 4 Kinetic 1 | . . . . . . . . . 1 Secondary 1 | . . . . . . . . 1 . Self-Inflicted Damage 12 | . . . . . . . . . 12 Shots . | . . . . . . . . . . Rammed 10 | . . . . . . . . . 10 Targets Rammed 10 | . . . . . . . . . 10 Kicked . | . . . . . . . . . . Crushed . | . . . . . . . . . . Highest Temperature 209 | 70 194 50 26 146 4 209 25 . 47 Average Temperature 40 | 28 76 25 12 13 4 80 13 . 23 Received Heat Transfer 1410 | . 78 36 72 54 . 72 396 42 660 Siege Activations . | . . . . . . . . . . Martial Activations . | . . . . . . . . . . Shielding Activations . | . . . . . . . . . . Robots Disrupted . | . . . . . . . . . . Combat Hostiles . | . . . . . . . . . . Robots Corrupted 13 | . . . . . . . 9 3 1 Combat Hostiles 9 | . . . . . . . 6 2 1 Parts Fried 11 | . . . . . . . 11 . . Impact Corruptions 40 | . . . . . . . 27 10 3 Robots Melted . | . . . . . . . . . . Combat Hostiles . | . . . . . . . . . . Parts Melted 1 | . . 1 . . . . . . . Heat Transferred 925 | 111 592 222 . . . . . . . Parts Sabotaged . | . . . . . . . . . . Parts Stolen . | . . . . . . . . . . Parts Stripped . | . . . . . . . . . . Power Chain Reactions . | . . . . . . . . . . Alert | -11 -10 -10 -9 -9 -9 -8 -8 -7 -7 ------- Run | Yrd Mat Min Mat Min Exi Min Mat Fac Sto Maximum Alert Level 1 | . . . . . . . 1 . . Low Security (%) 98 | 100 100 100 100 100 . 100 97 100 100 Level 1 1 | . . . . . . . 2 . . Level 2 . | . . . . . . . . . . Level 3 . | . . . . . . . . . . Level 4 . | . . . . . . . . . . Level 5 . | . . . . . . . . . . High Security . | . . . . . . . . . . Max Security . | . . . . . . . . . . Peak Influence 294 | 5 80 126 97 50 . 24 294 193 148 Initial 133 | . . 18 42 12 . . . 133 24 Average 42 | . 21 13 47 9 . 2 46 107 66 Influence Increases 1910 | 5 132 176 141 73 . 53 822 188 320 Destroy 0b10 Robot/C 988 | . 100 140 80 60 . 32 416 128 32 Destroy 0b10 Robot/NC 66 | 5 5 . . . . . 40 4 12 Destroy Leader 238 | . 12 20 20 10 . 8 118 32 18 Allied During Kill 27 | . . 16 11 . . . . . . Successful Hack 35 | . . . . . . . 15 12 8 Disable Machine 27 | . . . 15 . . . . . 12 Anti-Garrison Action 240 | . . . . . . . 120 . 120 Destroy Structure 10 | . . . . 3 . 1 5 . 1 Lose Combat Pursuer 279 | . 15 . 15 . . 12 108 12 117 Influence Decreases 1865 | 5 85 113 218 106 . 53 528 427 330 Entered New Map 310 | . . 29 68 21 . . . 161 31 Time Decay 1303 | 5 85 84 110 75 . 32 498 246 168 Lost Part 212 | . . . . 10 . 21 30 20 131 Lost Ally 40 | . . . 40 . . . . . . Squads Dispatched 16 | . 1 . 1 . . . 8 1 5 Investigation 2 | . 1 . . . . . 1 . . Extermination 2 | . . . . . . . . 1 1 Reinforcement 6 | . . . 1 . . . 4 . 1 Assault 4 | . . . . . . . 2 . 2 Garrison 2 | . . . . . . . 1 . 1 Intercept . | . . . . . . . . . . Searches Triggered . | . . . . . . . . . . Construction Impeded . | . . . . . . . . . . Haulers Reinforced . | . . . . . . . . . . Active Scanning Responses . | . . . . . . . . . . Cargo Convoy Interrupts . | . . . . . . . . . . Stealth | -11 -10 -10 -9 -9 -9 -8 -8 -7 -7 --------- Run | Yrd Mat Min Mat Min Exi Min Mat Fac Sto Distress Signals 8 | . . . 1 1 . . 6 . . Communications Jammed . | . . . . . . . . . . Distress Signals . | . . . . . . . . . . Times Spotted 106 | . 9 7 4 3 . 3 48 8 24 Peak Tracking Total 10 | . 3 3 3 3 . 3 8 3 10 Tactical Retreats 17 | . 1 . 1 . . 1 8 1 5 Traps | -11 -10 -10 -9 -9 -9 -8 -8 -7 -7 ------- Run | Yrd Mat Min Mat Min Exi Min Mat Fac Sto Traps Triggered 3 | . 1 . . . . . 1 . 1 Indirectly . | . . . . . . . . . . Trap Hack Attempts . | . . . . . . . . . . Triggered . | . . . . . . . . . . Disarmed . | . . . . . . . . . . Reprogrammed . | . . . . . . . . . . Reused . | . . . . . . . . . . Traps Extracted . | . . . . . . . . . . Installed . | . . . . . . . . . . Triggered . | . . . . . . . . . . Machines | -11 -10 -10 -9 -9 -9 -8 -8 -7 -7 ---------- Run | Yrd Mat Min Mat Min Exi Min Mat Fac Sto Machines Disabled 4 | . . . 1 . . . 1 . 2 Max in Single Turn 1 | . . . 1 . . . 1 . 1 Garrison Access 2 | . . . . . . . 1 . 1 Machines Repaired . | . . . . . . . . . . Machines Dismantled . | . . . . . . . . . . Machines Sabotaged . | . . . . . . . . . . Overloaded Fab Kills . | . . . . . . . . . . Hacking | -11 -10 -10 -9 -9 -9 -8 -8 -7 -7 --------- Run | Yrd Mat Min Mat Min Exi Min Mat Fac Sto Machines Accessed 14 | . 1 . . . 4 . 5 2 2 Terminals 7 | . . . . . . . 5 1 1 Fabricators . | . . . . . . . . . . Repair Stations . | . . . . . . . . . . Recycling Units 1 | . 1 . . . . . . . . Scanalyzers . | . . . . . . . . . . Garrison Access 2 | . . . . . . . . 1 1 Total Hacks 37 | . 1 . . . 19 . 9 4 4 Successful 27 | . . . . . 19 . 4 2 2 Failed 10 | . 1 . . . . . 5 2 2 Catastrophic 3 | . 1 . . . . . 2 . . Database Lockouts . | . . . . . . . . . . Manual 9 | . . . . . 1 . 4 3 1 Terminals 13 | . . . . . . . 9 1 3 Fabricators . | . . . . . . . . . . Repair Stations . | . . . . . . . . . . Recycling Units 1 | . 1 . . . . . . . . Scanalyzers . | . . . . . . . . . . Garrison Access 4 | . . . . . . . . 3 1 Terminal Hacks 26 | . . . . . 19 . 4 1 2 Record 20 | . . . . . 18 . 1 1 . Robot Analysis 1 | . . . . . . . . . 1 Alert Level 1 | . . . . . . . 1 . . Hauler Manifests 1 | . . . . . . . 1 . . Zone Layout 2 | . . . . . . . 1 . 1 Proto ID Catalog 1 | . . . . . 1 . . . . Fabricator Hacks . | . . . . . . . . . . Repair Station Hacks . | . . . . . . . . . . Recycling Unit Hacks . | . . . . . . . . . . Scanalyzer . | . . . . . . . . . . Garrison Access Hacks . | . . . . . . . . . . Unauthorized Hacks 1 | . . . . . . . . 1 . Terminals . | . . . . . . . . . . Fabricators . | . . . . . . . . . . Repair Stations . | . . . . . . . . . . Recycling Units . | . . . . . . . . . . Scanalyzers . | . . . . . . . . . . Garrison Access 1 | . . . . . . . . 1 . Watchers 1 | . . . . . . . . 1 . Data Cores Recovered 1 | . . . . . . . . . 1 Used . | . . . . . . . . . . Hacking Detections 9 | . 1 . . . . . 4 2 2 Full Trace Events . | . . . . . . . . . . Feedback Events . | . . . . . . . . . . Feedback Blocked . | . . . . . . . . . . Robot Schematics Acquired . | . . . . . . . . . . Robots Built . | . . . . . . . . . . Authchips . | . . . . . . . . . . Time . | . . . . . . . . . . Total Robot Build Rating . | . . . . . . . . . . Part Schematics Acquired . | . . . . . . . . . . Parts Built . | . . . . . . . . . . Authchips . | . . . . . . . . . . Time . | . . . . . . . . . . Total Part Build Rating . | . . . . . . . . . . Part Studies Acquired . | . . . . . . . . . . Parts Repaired . | . . . . . . . . . . Time . | . . . . . . . . . . Parts Recycled . | . . . . . . . . . . Recycled Matter . | . . . . . . . . . . Retrieved Matter . | . . . . . . . . . . Retrieved Components . | . . . . . . . . . . Parts Scanalyzed . | . . . . . . . . . . Part Schematics Acquired . | . . . . . . . . . . Parts Damaged . | . . . . . . . . . . Bothacking | -11 -10 -10 -9 -9 -9 -8 -8 -7 -7 ------------ Run | Yrd Mat Min Mat Min Exi Min Mat Fac Sto Used RIF Installer . | . . . . . . . . . . Robots Hacked . | . . . . . . . . . . Non-combat . | . . . . . . . . . . Combat . | . . . . . . . . . . Robot Hacks Applied . | . . . . . . . . . . Relay Couplers Released 4 | . . . . . . . 2 . 2 Machine Destruction 4 | . . . . . . . 2 . 2 Fabnet Peak Effective % . | . . . . . . . . . . Robots Rewired . | . . . . . . . . . . Allies Hacked . | . . . . . . . . . . Hacks Repelled . | . . . . . . . . . . Allies | -11 -10 -10 -9 -9 -9 -8 -8 -7 -7 -------- Run | Yrd Mat Min Mat Min Exi Min Mat Fac Sto Total Allies 4 | . . 4 . . . . . . . Largest Group 3 | . . 3 2 . . . . . . Highest-Rated Group 40 | . . 40 32 . . . . . . Highest-Rated Ally 31 | . . 31 16 . . . . . . Total Orders . | . . . . . . . . . . Ally Attacks 27 | . . 21 6 . . . . . . Total Damage 350 | . . 271 79 . . . . . . Kills 7 | . . 4 3 . . . . . . Allies Corrupted . | . . . . . . . . . . Allies Melted . | . . . . . . . . . . Intel | -11 -10 -10 -9 -9 -9 -8 -8 -7 -7 ------- Run | Yrd Mat Min Mat Min Exi Min Mat Fac Sto Active Infowar (turns) 2084 | 17 357 549 234 141 . . . 525 261 Sensors 1143 | . . . 216 141 . . . 525 261 Seismic 1023 | 17 357 549 100 . . . . . . Robot Analysis Total 1 | . . . . . . . . . 1 Derelict Logs Recovered 1 | . . 1 . . . . . . . Drone Launches . | . . . . . . . . . . Drone Recoveries . | . . . . . . . . . . Exploration | -11 -10 -10 -9 -9 -9 -8 -8 -7 -7 ------------- Run | Yrd Mat Min Mat Min Exi Min Mat Fac Sto Turns Passed 5852 | 97 357 549 234 290 560 346 2513 525 381 Spaces Moved 3367 | 55 194 411 135 165 465 196 1132 344 270 Core 37 | 6 . . . . . . . . 31 Treads . | . . . . . . . . . . Legs 3230 | 49 194 411 135 165 465 196 1132 344 139 Wheels . | . . . . . . . . . . Hover 100 | . . . . . . . . . 100 Flight . | . . . . . . . . . . Fastest Speed 50 | 50 120 120 120 120 120 120 120 122 50 Average Speed 119 | 116 120 120 120 120 120 120 123 124 89 Slowest Speed 250 | 190 120 120 120 120 120 120 126 125 250 Overloaded Moves . | . . . . . . . . . . Propulsion Burnouts . | . . . . . . . . . . Robots Hopped . | . . . . . . . . . . Potential Cave-ins . | . . . . . . . . . . Cave-ins Triggered . | . . . . . . . . . . Exploration Rate (%) 44 | 3 21 96 11 39 89 49 78 10 44 Regions Visited 9 Branch Regions 5 Pre-discovered Areas 1 | . . . . . 1 . . . . Known Exits Taken 6 | . . . 1 1 1 1 1 1 . Unknown Exits Taken 3 | 1 1 1 . . . . . . . Scrap Searched 2 | . . 1 . 1 . . . . . Spaces Dug 6 | . . . . 1 . . 5 . . Terrain Destroyed 10 | . . . . 3 . 1 5 . 1 Melee 5 | . . . . . . . 5 . . Projectile 5 | . . . . 3 . 1 . . 1 AOE . | . . . . . . . . . . Terrain Rammed . | . . . . . . . . . . Walls Destroyed . | . . . . . . . . . . Machines Disabled . | . . . . . . . . . . Actions | -11 -10 -10 -9 -9 -9 -8 -8 -7 -7 --------- Run | Yrd Mat Min Mat Min Exi Min Mat Fac Sto Total 4795 | 75 287 456 185 204 467 291 2076 402 352 Wait 1066 | 3 75 29 25 8 . 78 803 22 23 Move 3358 | 54 193 410 134 164 464 195 1131 343 270 Hop . | . . . . . . . . . . Pick Up 28 | 6 1 2 . 2 1 1 8 5 2 Fast Attach 16 | 7 . . 1 . 1 2 2 . 3 Attach 15 | . . . 1 . . 2 4 4 4 Detach . | . . . . . . . . . . Swap 44 | . 1 3 9 3 . 3 19 2 4 Drop 33 | . . 5 3 4 1 1 12 4 3 Fire 92 | 5 17 7 12 23 . 9 14 . 5 Melee 133 | . . . . . . . 83 22 28 Ram 10 | . . . . . . . . . 10 Kick . | . . . . . . . . . . Crush . | . . . . . . . . . . Escape Stasis . | . . . . . . . . . . Rewire . | . . . . . . . . . . Trap . | . . . . . . . . . . Miscellaneous . | . . . . . . . . . . Route ------- -11/Scrapyard -10/Materials -10/Mines (discovered 2 exits: [*Mat x2]) -9/Materials -9/Mines -9/Exiles -8/Mines -8/Materials -7/Factory -7/Storage History --------- Turn | Location | Event 17 | -11/Scrapyard | Discovered new exit (range 15) 98 | -11/Scrapyard | Entered Materials 216 | -10/Materials | Discovered new exit (range 10) 311 | -10/Materials | Build established: Mutant 455 | -10/Materials | Entered Mines 458 | -10/Mines | Received a Mining Laser from a helpful Derelict 485 | -10/Mines | Met a Derelict bent on vengeance 876 | -10/Mines | Assisted by bots powering up and referring to "LRC-V3" 885 | -10/Mines | Discovered new exit (range 16) 956 | -10/Mines | Discovered new exit (range 11) 980 | -10/Mines | Learned Materials terminal intel 1004 | -10/Mines | Entered Materials 1004 | -9/Materials | Accompanied by 2 allies 1004 | -9/Materials | Evolved 2 slots: Propulsion x1, Utility x1 1005 | -9/Materials | Loaded intel: 12 terminal locations 1232 | -9/Materials | Discovered new exit (range 5) 1237 | -9/Materials | Identified exit to Mines 1238 | -9/Materials | Entered Mines 1245 | -9/Mines | Received a Rocket Launcher from a helpful Derelict 1263 | -9/Mines | YI-UF0 nonchalantly dropped a Grenade Launcher on the ground 1268 | -9/Mines | Build established: Scavenger-Mutant 1405 | -9/Mines | Excavation squad dispatched 1405 | -9/Mines | A large section of the Mines collapsed 1522 | -9/Mines | Deemed a non-threat by the Exiles lab entrance 1523 | -9/Mines | Discovered new exit (range 5) 1527 | -9/Mines | Identified exit to Exiles 1528 | -9/Mines | Entered Exiles 1557 | -9/Exiles | Met 8R-AWN 1578 | -9/Exiles | Met EX-HEX 1617 | -9/Exiles | Met EX-BIN 1630 | -9/Exiles | Aligned with FarCom system 1632 | -9/Exiles | Given EX-Vault access code 1663 | -9/Exiles | Opened EX-Vault 1669 | -9/Exiles | Found 0b10 Alert Chip 1741 | -9/Exiles | Warned to stay clear of 0b10 Research branches 1775 | -9/Exiles | Met EX-DEC 1813 | -9/Exiles | Learned location of Zion (-6) 1863 | -9/Exiles | Visited The Gauntlet 2074 | -9/Exiles | Discovered new exit (range 14) 2087 | -9/Exiles | Identified exit to Mines 2088 | -9/Exiles | Left Exiles lab with 0b10 Alert Chip 2088 | -9/Exiles | Entered Mines 2146 | -8/Mines | Lost 4 parts (1p2n1w) 2415 | -8/Mines | Discovered new exit (range 12) 2433 | -8/Mines | Identified exit to Materials 2434 | -8/Mines | Entered Materials 2434 | -8/Materials | Evolved 2 slots: Propulsion x1, Weapon x1 3638 | -8/Materials | Build established: Mutant 4789 | -8/Materials | Garrison activated, responded to threat 4907 | -8/Materials | Discovered new exit (range 7) 4913 | -8/Materials | Identified exit to Factory 4947 | -8/Materials | Entered Factory 4947 | -7/Factory | Evolved 2 slots: Utility x2 5250 | -7/Factory | Build established: Assassin 5422 | -7/Factory | Discovered new exit (range 10) 5471 | -7/Factory | Identified exit to Storage 5472 | -7/Factory | Entered Storage 5546 | -7/Storage | Garrison activated, responded to threat 5742 | -7/Storage | System corruption reached 10% 5764 | -7/Storage | Core integrity fell below 50% 5798 | -7/Storage | Lost 15 parts (1p5n5u4w) 5842 | -7/Storage | Core integrity fell below 20% 5853 | -7/Storage | Destroyed by S-27 Virus with Autogun Last Messages --------------- 05830_ K-01 Serf cleans the Terminal. 05831_ ALERT: Potential suspicious activity detected, Programmers report to Storage Zone 1U. 05834_ K-01 Serf cleans the Terminal. 05834_ K-01 Serf destroyed. 05835_ Acquired 8 matter. 05838_ Slammed into S-27 Virus. 05839_ Wheel destroyed. 05842_ Slammed into S-27 Virus. 05843_ K UPW>I V #QWZ#&1MIQGA/ 05843_ Slammed into S-27 Virus. 05843_ Destabilizing: System corrupted (+2). 05844_ Slammed into S-27 Virus. 05844_ Destabilizing: System corrupted (+1). 05845_ Slammed into S-27 Virus. 05848_ Imp. Airjet destroyed. 05848_ Slammed into S-27 Virus. 05849_ Destabilizing: System corrupted (+2). 05850_ Slammed into S-27 Virus. Map ----- +----------------------------------------------------+ | ############? #??????# " " # ##?# """ """ # | | #?? #??????# " "" " + ### """ """ ! | | #?? #??????# "["" " # / """ "" + | | #?# #??????# " "" " # ### """ """ | | #?# """ """ #??????# """"]" # #?# | | #?# """ """ #??????# ??""" # ##########+## | | #???""" """ ????????# ???? + | | #????? ????????#######??### | | ########+########### #????###+######+####### | | #???????????? T#????? | | #???????????#" "##????? | | % % #????????????**???????? | | ###############T###### #???????????#**???????? | | ??????????????###????#### ##???????????###???????? | | ????????????????????????#%#??????????????????????? | | ????????????????????????#Y#??????????????????????? | | ????????????????????????#%#??????????????????????? | | ????????????????????????#%#??????????????????????? | | ???????????##########???#s#??????????????????????? | | ?????????? ??#s#??????????????????????? | | ?????????? ###%#??????????????????????? | | ?????????? %#????##????????????????? | | ?????????????????##### s%#??# ###?????????????? | | ?????????????????????# ## #?????????????? | | ?????????????????????+ p #???????????? | | ?????????????????????####@# Y#??????????? | | ????????????????????????# #?? """ #???????????? | | ????????????????????????# #???? """?????????????? | | ????????????????????????# #??????"""?????????????? | | ????????????????????????# #???????? ?????????????? | | ????????????????????????# #??????????????????????? | | ????????????????????????# #??????????????????????? | | ????????????????????????# #??????????????????????? | | ???????????w???????????? ??????????????????????? | | ???????????????????????? ???????????ss?????????? | | ???????????????????????? ?????????g?s??????????? | | ????????????????????????###??????????????????????? | | ?????????????????????????????????????????????????? | | ?????????????????????????????????????????????????? | | ??????????????????????????Y??????????????????????? | | ?????????????????????????????????????????????????? | | ?????????????????????????????????????????????????? | | ?????????????????????????????????????????????????? | | ?????????????????????????????????????????????????? | | ?????????????????????????????????????????????????? | | ?????????????????????????????????????????????????? | | ?????????????????????????????????????????????????? | | ?????????????????????????????????????????????????? | | ?????????????????????????????????????????????????? | | ?????????????????????????????????????????????????? | +----------------------------------------------------+ Best States ------------- Heat Dissipation 34 Energy Generation 17 Energy Capacity 300 Matter Stores 300 Matter Capacity 300 Sight Range 16 Robot Scan Range 15 Terrain Scan Density 10 Evasion (%) 55 Melee Accuracy 5 Recoil Reduction 1 Item Schematics ----------------- None Robot Schematics ------------------ None Fabricated ------------ Nothing Repaired ---------- Nothing Studied --------- None Alien Tech Used ----------------- None Achievements -------------- None Challenges ------------ None Game ------ Seed ArmorFissionWall Manual? 0 Play Time 00:52:54 Cumulative 12.3 hours Start 2026.08.03 @ 09:24:26 End 2026.08.03 @ 12:03:56 Sessions 1 Manual Loads 0 Difficulty Rogue Special Mode None Game No. 13 Rogue 13 Adventurer 0 Explorer 0 Win Type - Total 0 Types 0/0/0/0/0/0/0/0/0/0 Lore% 12 Gallery% 20 Achievement% 16 Wizard Run 0 Options --------- Layout 1 ASCII 0 Keyboard 1 Movement Numpad Keybinds 0 Fullscreen 2 Font 24/Smallcaps Map View 50x35 Zoom Use 0% Tactical HUD 1 Map Filters NONE Filters NONE Steam 1 RUN: adedb454-52af-4159-957d-cb95d01bbd6a